[Event "Titled Tuesday Blitz May 16 Early 2023"]
[White "Pham, Le Thao Nguyen"]
[Black "Mikhaylova, Irina"]
[WhiteFideId "12401226"]
[BlackFideId "4109040"]
[WhiteElo "2286"]
[BlackElo "1975"]
[Result "1/2-1/2"]
[Round "07"]
[TimeControl "180+2"]
[Date "2023.05.16"]
[WhiteClock "0:00:09"]
[BlackClock "0:00:15"]

1. d4 {[%clk 0:03:00]}  Nf6 {[%clk 0:02:59]} 2. Nf3 {[%clk 0:03:00]}  g6 {[%clk 0:02:59]} 3. g3 {[%clk 0:03:00]}  Bg7 {[%clk 0:02:59]} 4. Bg2 {[%clk 0:03:01]}  O-O {[%clk 0:03:00]} 5. O-O {[%clk 0:03:01]}  d5 {[%clk 0:03:01]} 6. c4 {[%clk 0:03:01]}  c6 {[%clk 0:03:01]} 7. Qb3 {[%clk 0:02:57]}  dxc4 {[%clk 0:03:00]} 8. Qxc4 {[%clk 0:02:57]}  Be6 {[%clk 0:03:00]} 9. Qc2 {[%clk 0:02:56]}  Na6 {[%clk 0:02:58]} 10. Nc3 {[%clk 0:02:48]}  Nb4 {[%clk 0:02:56]} 11. Qa4 {[%clk 0:02:47]}  a5 {[%clk 0:02:55]} 12. Bf4 {[%clk 0:02:29]}  Nfd5 {[%clk 0:02:47]} 13. a3 {[%clk 0:02:25]}  Nxf4 {[%clk 0:02:34]} 14. gxf4 {[%clk 0:02:24]}  Nd5 {[%clk 0:02:33]} 15. e3 {[%clk 0:02:16]}  b5 {[%clk 0:02:25]} 16. Qc2 {[%clk 0:02:13]}  b4 {[%clk 0:02:20]} 17. Na4 {[%clk 0:02:01]}  Rc8 {[%clk 0:01:48]} 18. Nc5 {[%clk 0:01:53]}  Qd6 {[%clk 0:01:22]} 19. Rfc1 {[%clk 0:01:48]}  Bg4 {[%clk 0:01:11]} 20. Nd2 {[%clk 0:01:40]}  Bf5 {[%clk 0:00:53]} 21. Qa4 {[%clk 0:01:25]}  Nxf4 {[%clk 0:00:41]} 22. exf4 {[%clk 0:01:18]}  Bxd4 {[%clk 0:00:38]} 23. Ndb3 {[%clk 0:01:19]}  Bxb2 {[%clk 0:00:23]} 24. axb4 {[%clk 0:01:09]}  Bxa1 {[%clk 0:00:23]} 25. Rxa1 {[%clk 0:01:08]}  axb4 {[%clk 0:00:23]} 26. Qxb4 {[%clk 0:01:08]}  Rb8 {[%clk 0:00:21]} 27. Qd4 {[%clk 0:01:05]}  Rb5 {[%clk 0:00:21]} 28. Qe3 {[%clk 0:00:59]}  Rfb8 {[%clk 0:00:17]} 29. Rc1 {[%clk 0:00:59]}  Be6 {[%clk 0:00:13]} 30. Nd2 {[%clk 0:00:55]}  Rb2 {[%clk 0:00:12]} 31. Nde4 {[%clk 0:00:52]}  Qc7 {[%clk 0:00:12]} 32. Nxe6 {[%clk 0:00:52]}  fxe6 {[%clk 0:00:12]} 33. Ng5 {[%clk 0:00:52]}  Qd6 {[%clk 0:00:13]} 34. Qh3 {[%clk 0:00:50]}  h5 {[%clk 0:00:12]} 35. Qxe6+ {[%clk 0:00:49]}  Qxe6 {[%clk 0:00:12]} 36. Nxe6 {[%clk 0:00:50]}  Re2 {[%clk 0:00:11]} 37. Nd4 {[%clk 0:00:49]}  Rd2 {[%clk 0:00:11]} 38. Nxc6 {[%clk 0:00:49]}  Rbb2 {[%clk 0:00:11]} 39. Rf1 {[%clk 0:00:48]}  Kf7 {[%clk 0:00:12]} 40. Ne5+ {[%clk 0:00:47]}  Kf6 {[%clk 0:00:12]} 41. Nf3 {[%clk 0:00:46]}  Rdc2 {[%clk 0:00:12]} 42. Ne5 {[%clk 0:00:41]}  Rb4 {[%clk 0:00:12]} 43. Nd3 {[%clk 0:00:40]}  Rd4 {[%clk 0:00:11]} 44. Rd1 {[%clk 0:00:34]}  Rc3 {[%clk 0:00:11]} 45. Bf1 {[%clk 0:00:35]}  Ra3 {[%clk 0:00:11]} 46. Kg2 {[%clk 0:00:34]}  Rb3 {[%clk 0:00:10]} 47. Kf3 {[%clk 0:00:31]}  Ra3 {[%clk 0:00:11]} 48. Ke3 {[%clk 0:00:31]}  Rd6 {[%clk 0:00:11]} 49. Rc1 {[%clk 0:00:29]}  Re6+ {[%clk 0:00:11]} 50. Kf3 {[%clk 0:00:29]}  Rd6 {[%clk 0:00:12]} 51. Ke3 {[%clk 0:00:28]}  Re6+ {[%clk 0:00:12]} 52. Kd2 {[%clk 0:00:28]}  Rd6 {[%clk 0:00:12]} 53. Rc2 {[%clk 0:00:28]}  Ra4 {[%clk 0:00:11]} 54. Ke3 {[%clk 0:00:27]}  Ra3 {[%clk 0:00:12]} 55. Rc5 {[%clk 0:00:24]}  Re6+ {[%clk 0:00:09]} 56. Re5 {[%clk 0:00:24]}  Rxe5+ {[%clk 0:00:09]} 57. fxe5+ {[%clk 0:00:25]}  Kf5 {[%clk 0:00:09]} 58. Bh3+ {[%clk 0:00:24]}  Kg5 {[%clk 0:00:10]} 59. Be6 {[%clk 0:00:22]}  h4 {[%clk 0:00:09]} 60. f4+ {[%clk 0:00:20]}  Kh5 {[%clk 0:00:09]} 61. Bh3 {[%clk 0:00:18]}  g5 {[%clk 0:00:09]} 62. fxg5 {[%clk 0:00:16]}  Kxg5 {[%clk 0:00:09]} 63. Bd7 {[%clk 0:00:15]}  Ra2 {[%clk 0:00:09]} 64. h3 {[%clk 0:00:14]}  Ra1 {[%clk 0:00:09]} 65. Ke4 {[%clk 0:00:13]}  Ra7 {[%clk 0:00:08]} 66. Bg4 {[%clk 0:00:12]}  Ra4+ {[%clk 0:00:07]} 67. Kf3 {[%clk 0:00:13]}  Ra3 {[%clk 0:00:07]} 68. Ke3 {[%clk 0:00:14]}  Ra4 {[%clk 0:00:07]} 69. Nf2 {[%clk 0:00:13]}  Ra3+ {[%clk 0:00:08]} 70. Ke2 {[%clk 0:00:13]}  Ra2+ {[%clk 0:00:08]} 71. Kf3 {[%clk 0:00:13]}  Ra3+ {[%clk 0:00:08]} 72. Kg2 {[%clk 0:00:13]}  Ra2 {[%clk 0:00:09]} 73. Kf3 {[%clk 0:00:13]}  Ra3+ {[%clk 0:00:09]} 74. Ke4 {[%clk 0:00:13]}  Ra4+ {[%clk 0:00:09]} 75. Kd5 {[%clk 0:00:14]}  Ra2 {[%clk 0:00:10]} 76. Ne4+ {[%clk 0:00:13]}  Kf4 {[%clk 0:00:10]} 77. Nc5 {[%clk 0:00:13]}  Rd2+ {[%clk 0:00:10]} 78. Ke6 {[%clk 0:00:13]}  Re2 {[%clk 0:00:10]} 79. Nd7 {[%clk 0:00:13]}  Re4 {[%clk 0:00:10]} 80. Kxe7 {[%clk 0:00:13]}  Rxe5+ {[%clk 0:00:09]} 81. Nxe5 {[%clk 0:00:13]}  Kxe5 {[%clk 0:00:10]} 82. Kf7 {[%clk 0:00:14]}  Kd6 {[%clk 0:00:10]} 83. Kf6 {[%clk 0:00:13]}  Kc7 {[%clk 0:00:09]} 84. Ke7 {[%clk 0:00:13]}  Kc6 {[%clk 0:00:10]} 85. Kf6 {[%clk 0:00:12]}  Kc7 {[%clk 0:00:09]} 86. Bf5 {[%clk 0:00:11]}  Kd8 {[%clk 0:00:09]} 87. Kf7 {[%clk 0:00:12]}  Kc7 {[%clk 0:00:09]} 88. Ke7 {[%clk 0:00:11]}  Kc6 {[%clk 0:00:09]} 89. Be4+ {[%clk 0:00:10]}  Kc5 {[%clk 0:00:10]} 90. Kf6 {[%clk 0:00:10]}  Kd6 {[%clk 0:00:10]} 91. Bf5 {[%clk 0:00:11]}  Kc5 {[%clk 0:00:11]} 92. Kg5 {[%clk 0:00:10]}  Kd6 {[%clk 0:00:11]} 93. Kf6 {[%clk 0:00:10]}  Kd5 {[%clk 0:00:10]} 94. Bg4 {[%clk 0:00:10]}  Kd6 {[%clk 0:00:10]} 95. Be6 {[%clk 0:00:10]}  Kc7 {[%clk 0:00:09]} 96. Ke7 {[%clk 0:00:11]}  Kc6 {[%clk 0:00:09]} 97. Bf5 {[%clk 0:00:11]}  Kc5 {[%clk 0:00:09]} 98. Ke6 {[%clk 0:00:09]}  Kc6 {[%clk 0:00:09]} 99. Be4+ {[%clk 0:00:09]}  Kc7 {[%clk 0:00:10]} 100. Ke7 {[%clk 0:00:09]}  Kb6 {[%clk 0:00:09]} 101. Kd6 {[%clk 0:00:09]}  Kb5 {[%clk 0:00:09]} 102. Bd3+ {[%clk 0:00:09]}  Kb4 {[%clk 0:00:09]} 103. Kd5 {[%clk 0:00:09]}  Kc3 {[%clk 0:00:10]} 104. Bf5 {[%clk 0:00:09]}  Kb4 {[%clk 0:00:10]} 105. Kd4 {[%clk 0:00:08]}  Kb5 {[%clk 0:00:10]} 106. Kd5 {[%clk 0:00:08]}  Kb6 {[%clk 0:00:11]} 107. Be4 {[%clk 0:00:08]}  Kc7 {[%clk 0:00:11]} 108. Ke6 {[%clk 0:00:09]}  Kc8 {[%clk 0:00:11]} 109. Ke7 {[%clk 0:00:09]}  Kc7 {[%clk 0:00:12]} 110. Bf5 {[%clk 0:00:09]}  Kc6 {[%clk 0:00:12]} 111. Kf6 {[%clk 0:00:10]}  Kd6 {[%clk 0:00:12]} 112. Kg5 {[%clk 0:00:08]}  Ke7 {[%clk 0:00:13]} 113. Kxh4 {[%clk 0:00:09]}  Kf8 {[%clk 0:00:13]} 114. Kg5 {[%clk 0:00:09]}  Kg7 {[%clk 0:00:14]} 115. h4 {[%clk 0:00:08]}  Kh8 {[%clk 0:00:14]} 116. Kh6 {[%clk 0:00:08]}  Kg8 {[%clk 0:00:15]} 117. Be6+ {[%clk 0:00:08]}  Kh8 {[%clk 0:00:15]} 118. Bf7 {[%clk 0:00:09]} 1/2-1/2


[Site "https://www.chess.com"]

[Event "Titled Tuesday Blitz May 16 Early 2023"]
[White "Jiganchine, Roman"]
[Black "Prieto Aranguren, Alain"]
[WhiteFideId "2603667"]
[BlackFideId "2268906"]
[WhiteElo "2252"]
[BlackElo "2209"]
[Result "1-0"]
[Round "07"]
[TimeControl "180+2"]
[Date "2023.05.16"]
[WhiteClock "0:01:42"]
[BlackClock "0:01:29"]

1. e4 {[%clk 0:02:59]}  c6 {[%clk 0:02:58]} 2. d4 {[%clk 0:02:58]}  d5 {[%clk 0:02:59]} 3. exd5 {[%clk 0:02:59]}  cxd5 {[%clk 0:02:59]} 4. Nf3 {[%clk 0:03:00]}  Nc6 {[%clk 0:02:59]} 5. c4 {[%clk 0:03:00]}  Nf6 {[%clk 0:02:58]} 6. Nc3 {[%clk 0:02:59]}  g6 {[%clk 0:02:58]} 7. cxd5 {[%clk 0:02:57]}  Nxd5 {[%clk 0:02:58]} 8. Qb3 {[%clk 0:02:57]}  Nxc3 {[%clk 0:02:57]} 9. Bc4 {[%clk 0:02:57]}  Nd5 {[%clk 0:02:55]} 10. Bxd5 {[%clk 0:02:55]}  e6 {[%clk 0:02:55]} 11. Bxc6+ {[%clk 0:02:45]}  bxc6 {[%clk 0:02:55]} 12. O-O {[%clk 0:02:44]}  Qd5 {[%clk 0:02:54]} 13. Qc3 {[%clk 0:02:37]}  Bg7 {[%clk 0:02:50]} 14. Bf4 {[%clk 0:02:33]}  O-O {[%clk 0:02:49]} 15. Be5 {[%clk 0:02:31]}  Ba6 {[%clk 0:02:46]} 16. Bxg7 {[%clk 0:02:21]}  Kxg7 {[%clk 0:02:44]} 17. Rfe1 {[%clk 0:02:15]}  f6 {[%clk 0:02:37]} 18. b3 {[%clk 0:02:14]}  Rac8 {[%clk 0:02:35]} 19. Rac1 {[%clk 0:02:13]}  Rfd8 {[%clk 0:02:34]} 20. h3 {[%clk 0:02:08]}  g5 {[%clk 0:02:18]} 21. Qb4 {[%clk 0:02:07]}  Qd6 {[%clk 0:02:09]} 22. Rc5 {[%clk 0:02:01]}  h5 {[%clk 0:01:59]} 23. Qa5 {[%clk 0:01:52]}  Bb7 {[%clk 0:01:52]} 24. Rxg5+ {[%clk 0:01:47]}  fxg5 {[%clk 0:01:48]} 25. Qxg5+ {[%clk 0:01:47]}  Kh7 {[%clk 0:01:40]} 26. Qxh5+ {[%clk 0:01:47]}  Kg7 {[%clk 0:01:40]} 27. Qg5+ {[%clk 0:01:47]}  Kh7 {[%clk 0:01:41]} 28. Re4 {[%clk 0:01:42]}  Qd5 {[%clk 0:01:29]} 29. Rh4# {[%clk 0:01:42]} 1-0


[Site "https://www.chess.com"]

[Event "Titled Tuesday Blitz May 16 Early 2023"]
[White "stratacticos"]
[Black "Rian, Kapriaga"]
[BlackFideId "7103263"]
[WhiteElo "1888"]
[BlackElo "2318"]
[Result "1/2-1/2"]
[Round "07"]
[TimeControl "180+2"]
[Date "2023.05.16"]
[WhiteClock "0:00:05"]
[BlackClock "0:00:47"]

1. e4 {[%clk 0:03:00]}  c6 {[%clk 0:02:59]} 2. d4 {[%clk 0:02:59]}  d5 {[%clk 0:02:59]} 3. e5 {[%clk 0:02:59]}  Bf5 {[%clk 0:02:59]} 4. Ne2 {[%clk 0:02:59]}  e6 {[%clk 0:02:59]} 5. Nf4 {[%clk 0:02:58]}  c5 {[%clk 0:02:57]} 6. c3 {[%clk 0:02:58]}  Nc6 {[%clk 0:02:56]} 7. Bb5 {[%clk 0:02:48]}  cxd4 {[%clk 0:02:55]} 8. Qxd4 {[%clk 0:02:38]}  Ne7 {[%clk 0:02:49]} 9. O-O {[%clk 0:02:26]}  Qd7 {[%clk 0:02:45]} 10. Qe3 {[%clk 0:02:13]}  a6 {[%clk 0:02:42]} 11. Ba4 {[%clk 0:01:59]}  Ng6 {[%clk 0:02:42]} 12. Nxg6 {[%clk 0:01:35]}  Bxg6 {[%clk 0:02:41]} 13. Nd2 {[%clk 0:01:32]}  Be7 {[%clk 0:02:38]} 14. Nf3 {[%clk 0:01:31]}  h6 {[%clk 0:02:37]} 15. Nd4 {[%clk 0:01:24]}  b5 {[%clk 0:02:37]} 16. Bb3 {[%clk 0:01:14]}  Nxd4 {[%clk 0:02:36]} 17. cxd4 {[%clk 0:01:13]}  O-O {[%clk 0:02:36]} 18. f4 {[%clk 0:01:11]}  Rfc8 {[%clk 0:02:35]} 19. Bd2 {[%clk 0:01:10]}  Rc6 {[%clk 0:02:33]} 20. Rac1 {[%clk 0:01:02]}  Rac8 {[%clk 0:02:32]} 21. Rxc6 {[%clk 0:01:01]}  Rxc6 {[%clk 0:02:32]} 22. Rc1 {[%clk 0:01:00]}  Qc8 {[%clk 0:02:31]} 23. Rxc6 {[%clk 0:00:56]}  Qxc6 {[%clk 0:02:31]} 24. Qc3 {[%clk 0:00:56]}  Qxc3 {[%clk 0:02:19]} 25. Bxc3 {[%clk 0:00:49]}  Bd3 {[%clk 0:02:19]} 26. Kf2 {[%clk 0:00:47]}  Bc4 {[%clk 0:02:19]} 27. Bxc4 {[%clk 0:00:46]}  dxc4 {[%clk 0:02:20]} 28. Ke3 {[%clk 0:00:44]}  Kf8 {[%clk 0:02:17]} 29. d5 {[%clk 0:00:44]}  exd5 {[%clk 0:02:17]} 30. Kd4 {[%clk 0:00:44]}  Ke8 {[%clk 0:02:15]} 31. Kxd5 {[%clk 0:00:43]}  Kd7 {[%clk 0:02:15]} 32. f5 {[%clk 0:00:39]}  g6 {[%clk 0:02:13]} 33. g4 {[%clk 0:00:26]}  h5 {[%clk 0:02:12]} 34. h3 {[%clk 0:00:26]}  Bf8 {[%clk 0:02:05]} 35. Bd4 {[%clk 0:00:24]}  Be7 {[%clk 0:02:05]} 36. Bc3 {[%clk 0:00:22]}  hxg4 {[%clk 0:02:04]} 37. hxg4 {[%clk 0:00:21]}  Bf8 {[%clk 0:02:04]} 38. Bd4 {[%clk 0:00:21]}  gxf5 {[%clk 0:02:04]} 39. gxf5 {[%clk 0:00:21]}  Bb4 {[%clk 0:01:58]} 40. Bc5 {[%clk 0:00:14]}  Bd2 {[%clk 0:01:40]} 41. a4 {[%clk 0:00:12]}  Bc1 {[%clk 0:01:26]} 42. axb5 {[%clk 0:00:12]}  axb5 {[%clk 0:01:26]} 43. Bd4 {[%clk 0:00:12]}  Bd2 {[%clk 0:01:15]} 44. Kc5 {[%clk 0:00:11]}  b4 {[%clk 0:00:49]} 45. Kxc4 {[%clk 0:00:09]}  Kc6 {[%clk 0:00:49]} 46. e6 {[%clk 0:00:08]}  fxe6 {[%clk 0:00:49]} 47. fxe6 {[%clk 0:00:08]}  Kd6 {[%clk 0:00:49]} 48. Bc5+ {[%clk 0:00:08]}  Kxe6 {[%clk 0:00:49]} 49. Bxb4 {[%clk 0:00:09]}  Be3 {[%clk 0:00:48]} 50. Bc5 {[%clk 0:00:08]}  Bd2 {[%clk 0:00:48]} 51. b4 {[%clk 0:00:05]}  Bxb4 {[%clk 0:00:47]} 1/2-1/2


[Site "https://www.chess.com"]

[Event "Titled Tuesday Blitz May 16 Early 2023"]
[White "ChawitAp"]
[Black "Onufrienko, Vladislav"]
[BlackFideId "13804332"]
[WhiteElo "2216"]
[BlackElo "1814"]
[Result "0-1"]
[Round "07"]
[TimeControl "180+2"]
[Date "2023.05.16"]
[WhiteClock "0:00:22"]
[BlackClock "0:02:27"]

1. d4 {[%clk 0:03:00]}  h5 {[%clk 0:03:00]} 2. c3 {[%clk 0:03:00]}  h4 {[%clk 0:02:58]} 3. e4 {[%clk 0:03:00]}  d5 {[%clk 0:02:53]} 4. exd5 {[%clk 0:02:57]}  Qxd5 {[%clk 0:02:54]} 5. Ne2 {[%clk 0:02:41]}  e5 {[%clk 0:02:49]} 6. dxe5 {[%clk 0:02:36]}  Qxd1+ {[%clk 0:02:50]} 7. Kxd1 {[%clk 0:02:37]}  Nc6 {[%clk 0:02:51]} 8. Bf4 {[%clk 0:02:34]}  Bf5 {[%clk 0:02:50]} 9. Nd2 {[%clk 0:02:12]}  O-O-O {[%clk 0:02:51]} 10. Kc1 {[%clk 0:01:52]}  Bc5 {[%clk 0:02:50]} 11. f3 {[%clk 0:01:48]}  Nge7 {[%clk 0:02:49]} 12. Nb3 {[%clk 0:01:36]}  Bb6 {[%clk 0:02:47]} 13. g4 {[%clk 0:01:19]}  Bh7 {[%clk 0:02:36]} 14. Bg5 {[%clk 0:00:57]}  f6 {[%clk 0:02:33]} 15. exf6 {[%clk 0:00:53]}  gxf6 {[%clk 0:02:33]} 16. Bxf6 {[%clk 0:00:50]}  Be3+ {[%clk 0:02:32]} 17. Nd2 {[%clk 0:00:34]}  Bxd2+ {[%clk 0:02:33]} 18. Kd1 {[%clk 0:00:30]}  Bxc3+ {[%clk 0:02:34]} 19. Nd4 {[%clk 0:00:28]}  Bxd4 {[%clk 0:02:28]} 20. Bxd4 {[%clk 0:00:29]}  Rxd4+ {[%clk 0:02:28]} 21. Ke2 {[%clk 0:00:29]}  Rhd8 {[%clk 0:02:27]} 22. Kf2 {[%clk 0:00:27]}  Rd2+ {[%clk 0:02:26]} 23. Be2 {[%clk 0:00:22]}  Nd4 {[%clk 0:02:27]} 0-1


[Site "https://www.chess.com"]

[Event "Titled Tuesday Blitz May 16 Early 2023"]
[White "DubiousM0ves532"]
[Black "FunnyDuck66"]
[WhiteElo "2424"]
[BlackElo "2213"]
[Result "1-0"]
[Round "07"]
[TimeControl "180+2"]
[Date "2023.05.16"]
[WhiteClock "0:00:11"]
[BlackClock "0:00:11"]

1. Nf3 {[%clk 0:03:00]}  d5 {[%clk 0:02:57]} 2. c4 {[%clk 0:02:59]}  c6 {[%clk 0:02:56]} 3. cxd5 {[%clk 0:02:58]}  cxd5 {[%clk 0:02:57]} 4. d4 {[%clk 0:02:58]}  Nc6 {[%clk 0:02:55]} 5. Nc3 {[%clk 0:02:58]}  Nf6 {[%clk 0:02:55]} 6. Bf4 {[%clk 0:02:55]}  a6 {[%clk 0:02:51]} 7. e3 {[%clk 0:02:54]}  e6 {[%clk 0:02:50]} 8. Bd3 {[%clk 0:02:52]}  Bd6 {[%clk 0:02:49]} 9. Bg3 {[%clk 0:02:51]}  O-O {[%clk 0:02:41]} 10. O-O {[%clk 0:02:51]}  b5 {[%clk 0:02:39]} 11. Rc1 {[%clk 0:02:51]}  Bxg3 {[%clk 0:02:37]} 12. hxg3 {[%clk 0:02:50]}  Bd7 {[%clk 0:02:35]} 13. Ne2 {[%clk 0:02:37]}  Rc8 {[%clk 0:02:29]} 14. Bb1 {[%clk 0:02:32]}  Na5 {[%clk 0:02:27]} 15. b3 {[%clk 0:02:32]}  Rxc1 {[%clk 0:02:25]} 16. Nxc1 {[%clk 0:02:33]}  b4 {[%clk 0:02:15]} 17. Nd3 {[%clk 0:02:33]}  Bb5 {[%clk 0:02:14]} 18. Re1 {[%clk 0:02:31]}  Qd6 {[%clk 0:02:13]} 19. Nc5 {[%clk 0:02:27]}  Nd7 {[%clk 0:02:06]} 20. Nxd7 {[%clk 0:02:27]}  Bxd7 {[%clk 0:02:00]} 21. Qd3 {[%clk 0:02:26]}  g6 {[%clk 0:01:59]} 22. Ne5 {[%clk 0:02:21]}  Bb5 {[%clk 0:01:59]} 23. Qd2 {[%clk 0:02:21]}  Rc8 {[%clk 0:01:58]} 24. Rc1 {[%clk 0:02:21]}  Rxc1+ {[%clk 0:01:45]} 25. Qxc1 {[%clk 0:02:19]}  Nc6 {[%clk 0:01:44]} 26. Nd3 {[%clk 0:02:02]}  a5 {[%clk 0:01:42]} 27. Nc5 {[%clk 0:01:57]}  Na7 {[%clk 0:01:37]} 28. Bd3 {[%clk 0:01:56]}  Qc6 {[%clk 0:01:32]} 29. Qc2 {[%clk 0:01:48]}  Bxd3 {[%clk 0:01:22]} 30. Qxd3 {[%clk 0:01:49]}  Nb5 {[%clk 0:01:19]} 31. g4 {[%clk 0:01:24]}  h6 {[%clk 0:01:10]} 32. f3 {[%clk 0:01:16]}  Nc3 {[%clk 0:01:10]} 33. a4 {[%clk 0:01:14]}  Qd6 {[%clk 0:01:04]} 34. f4 {[%clk 0:01:10]}  g5 {[%clk 0:01:02]} 35. g3 {[%clk 0:01:08]}  Kg7 {[%clk 0:00:55]} 36. Kf2 {[%clk 0:01:07]}  gxf4 {[%clk 0:00:42]} 37. gxf4 {[%clk 0:01:07]}  Qe7 {[%clk 0:00:40]} 38. Kg3 {[%clk 0:01:03]}  Qc7 {[%clk 0:00:30]} 39. Kf3 {[%clk 0:00:45]}  Qc6 {[%clk 0:00:29]} 40. Qa6 {[%clk 0:00:18]}  Qxa6 {[%clk 0:00:11]} 41. Nxa6 {[%clk 0:00:19]}  Nxa4 {[%clk 0:00:10]} 42. Ke2 {[%clk 0:00:12]}  Nc3+ {[%clk 0:00:10]} 43. Kd3 {[%clk 0:00:12]}  Ne4 {[%clk 0:00:10]} 44. Nc5 {[%clk 0:00:12]}  Nf2+ {[%clk 0:00:09]} 45. Ke2 {[%clk 0:00:12]}  Nxg4 {[%clk 0:00:10]} 46. Nb7 {[%clk 0:00:13]}  Nf6 {[%clk 0:00:04]} 47. Nxa5 {[%clk 0:00:13]}  Ne4 {[%clk 0:00:05]} 48. Nc6 {[%clk 0:00:12]}  h5 {[%clk 0:00:05]} 49. Nxb4 {[%clk 0:00:12]}  h4 {[%clk 0:00:05]} 50. Nd3 {[%clk 0:00:12]}  h3 {[%clk 0:00:05]} 51. Nf2 {[%clk 0:00:10]}  Nc3+ {[%clk 0:00:01]} 52. Kf3 {[%clk 0:00:10]}  Nb5 {[%clk 0:00:02]} 53. Kg3 {[%clk 0:00:10]}  h2 {[%clk 0:00:03]} 54. Kxh2 {[%clk 0:00:10]}  Kf8 {[%clk 0:00:03]} 55. Nd3 {[%clk 0:00:10]}  Ke7 {[%clk 0:00:04]} 56. Kg2 {[%clk 0:00:11]}  Nc3 {[%clk 0:00:04]} 57. Kf3 {[%clk 0:00:10]}  Ne4 {[%clk 0:00:04]} 58. Nc5 {[%clk 0:00:10]}  Nd2+ {[%clk 0:00:04]} 59. Ke2 {[%clk 0:00:10]}  Nb1 {[%clk 0:00:04]} 60. Kd3 {[%clk 0:00:10]}  Na3 {[%clk 0:00:04]} 61. b4 {[%clk 0:00:10]}  Nb5 {[%clk 0:00:04]} 62. Nb3 {[%clk 0:00:10]}  Kd6 {[%clk 0:00:05]} 63. Na5 {[%clk 0:00:10]}  Na3 {[%clk 0:00:04]} 64. e4 {[%clk 0:00:09]}  dxe4+ {[%clk 0:00:03]} 65. Kxe4 {[%clk 0:00:10]}  Nb5 {[%clk 0:00:02]} 66. Nc4+ {[%clk 0:00:10]}  Kc6 {[%clk 0:00:02]} 67. Ne5+ {[%clk 0:00:11]}  Kb6 {[%clk 0:00:02]} 68. Nxf7 {[%clk 0:00:12]}  Nc3+ {[%clk 0:00:03]} 69. Ke5 {[%clk 0:00:12]}  Nd5 {[%clk 0:00:03]} 70. Nd8 {[%clk 0:00:11]}  Nxb4 {[%clk 0:00:03]} 71. Nxe6 {[%clk 0:00:11]}  Kc6 {[%clk 0:00:03]} 72. f5 {[%clk 0:00:11]}  Nd5 {[%clk 0:00:04]} 73. Nd8+ {[%clk 0:00:11]}  Kd7 {[%clk 0:00:03]} 74. Kxd5 {[%clk 0:00:12]}  Kxd8 {[%clk 0:00:04]} 75. Ke6 {[%clk 0:00:12]}  Ke8 {[%clk 0:00:05]} 76. f6 {[%clk 0:00:11]}  Kf8 {[%clk 0:00:06]} 77. d5 {[%clk 0:00:12]}  Ke8 {[%clk 0:00:07]} 78. d6 {[%clk 0:00:10]}  Kf8 {[%clk 0:00:07]} 79. d7 {[%clk 0:00:11]}  Kg8 {[%clk 0:00:08]} 80. d8=Q+ {[%clk 0:00:11]}  Kh7 {[%clk 0:00:09]} 81. Qd7+ {[%clk 0:00:09]}  Kh6 {[%clk 0:00:10]} 82. Qg7+ {[%clk 0:00:09]}  Kh5 {[%clk 0:00:11]} 83. f7 {[%clk 0:00:10]}  Kh4 {[%clk 0:00:12]} 84. f8=Q {[%clk 0:00:10]}  Kh3 {[%clk 0:00:11]} 85. Qfh8# {[%clk 0:00:11]} 1-0


[Site "https://www.chess.com"]

[Event "Titled Tuesday Blitz May 16 Early 2023"]
[White "Blokhin, Sofia"]
[Black "Lakshmi C"]
[WhiteFideId "4508190"]
[BlackFideId "25035347"]
[WhiteElo "1994"]
[BlackElo "1942"]
[Result "1-0"]
[Round "07"]
[TimeControl "180+2"]
[Date "2023.05.16"]
[WhiteClock "0:00:03"]
[BlackClock "0:00:00"]

1. d4 {[%clk 0:03:00]}  Nf6 {[%clk 0:02:49]} 2. c4 {[%clk 0:02:58]}  e6 {[%clk 0:02:46]} 3. Nc3 {[%clk 0:02:56]}  d5 {[%clk 0:02:44]} 4. cxd5 {[%clk 0:02:54]}  exd5 {[%clk 0:02:44]} 5. Bf4 {[%clk 0:02:54]}  c6 {[%clk 0:02:42]} 6. e3 {[%clk 0:02:54]}  Bd6 {[%clk 0:02:41]} 7. g3 {[%clk 0:02:53]}  O-O {[%clk 0:02:38]} 8. Nf3 {[%clk 0:02:50]}  Bg4 {[%clk 0:02:35]} 9. h3 {[%clk 0:02:47]}  Bf5 {[%clk 0:02:33]} 10. Bd3 {[%clk 0:02:45]}  Ne4 {[%clk 0:02:31]} 11. Ne5 {[%clk 0:02:34]}  f6 {[%clk 0:02:19]} 12. Nf3 {[%clk 0:02:29]}  Bb4 {[%clk 0:01:53]} 13. Qc2 {[%clk 0:02:02]}  Qa5 {[%clk 0:01:30]} 14. Rc1 {[%clk 0:01:55]}  Na6 {[%clk 0:01:21]} 15. O-O {[%clk 0:01:53]}  Bxh3 {[%clk 0:01:14]} 16. Rfd1 {[%clk 0:01:38]}  f5 {[%clk 0:00:59]} 17. Ne5 {[%clk 0:01:32]}  g5 {[%clk 0:00:43]} 18. Bxe4 {[%clk 0:01:21]}  gxf4 {[%clk 0:00:37]} 19. Bg2 {[%clk 0:01:18]}  Bxg2 {[%clk 0:00:32]} 20. Kxg2 {[%clk 0:01:19]}  fxe3 {[%clk 0:00:31]} 21. fxe3 {[%clk 0:01:18]}  Bd6 {[%clk 0:00:26]} 22. Nd3 {[%clk 0:01:01]}  Qc7 {[%clk 0:00:19]} 23. Nf4 {[%clk 0:00:59]}  Qe7 {[%clk 0:00:19]} 24. Qe2 {[%clk 0:00:54]}  Rae8 {[%clk 0:00:15]} 25. Kf2 {[%clk 0:00:45]}  Nc7 {[%clk 0:00:14]} 26. Rh1 {[%clk 0:00:44]}  Ne6 {[%clk 0:00:14]} 27. Rh6 {[%clk 0:00:33]}  Ng5 {[%clk 0:00:06]} 28. Rch1 {[%clk 0:00:30]}  Rf6 {[%clk 0:00:06]} 29. R6h5 {[%clk 0:00:20]}  Rf7 {[%clk 0:00:05]} 30. Nd1 {[%clk 0:00:15]}  Ne4+ {[%clk 0:00:05]} 31. Kg2 {[%clk 0:00:14]}  Rg7 {[%clk 0:00:05]} 32. R1h3 {[%clk 0:00:11]}  Bxf4 {[%clk 0:00:03]} 33. exf4 {[%clk 0:00:09]}  Nxg3 {[%clk 0:00:03]} 34. Qxe7 {[%clk 0:00:08]}  Nxh5+ {[%clk 0:00:03]} 35. Qg5 {[%clk 0:00:06]}  Rxg5+ {[%clk 0:00:01]} 36. fxg5 {[%clk 0:00:07]}  Nf4+ {[%clk 0:00:01]} 37. Kg3 {[%clk 0:00:07]}  Nxh3 {[%clk 0:00:02]} 38. Kxh3 {[%clk 0:00:08]}  Re1 {[%clk 0:00:02]} 39. Nc3 {[%clk 0:00:07]}  Rc1 {[%clk 0:00:01]} 40. Kg3 {[%clk 0:00:06]}  Rc2 {[%clk 0:00:02]} 41. Nd1 {[%clk 0:00:05]}  Rd2 {[%clk 0:00:01]} 42. Ne3 {[%clk 0:00:04]}  Rxb2 {[%clk 0:00:01]} 43. Nxf5 {[%clk 0:00:05]}  Rxa2 {[%clk 0:00:01]} 44. Ne7+ {[%clk 0:00:04]}  Kf7 {[%clk 0:00:01]} 45. Nc8 {[%clk 0:00:03]}  Kg6 {[%clk 0:00:00]} 46. Kf4 {[%clk 0:00:03]} 1-0


[Site "https://www.chess.com"]

[Event "Titled Tuesday Blitz May 16 Early 2023"]
[White "Kuchava, Ana"]
[Black "Dahlgren, James Allen"]
[WhiteFideId "13605348"]
[BlackFideId "22256873"]
[WhiteElo "2001"]
[BlackElo "2192"]
[Result "1-0"]
[Round "07"]
[TimeControl "180+2"]
[Date "2023.05.16"]
[WhiteClock "0:01:05"]
[BlackClock "0:01:07"]

1. d4 {[%clk 0:03:00]}  e6 {[%clk 0:02:55]} 2. Nf3 {[%clk 0:03:00]}  c5 {[%clk 0:02:56]} 3. e3 {[%clk 0:02:58]}  d5 {[%clk 0:02:56]} 4. c4 {[%clk 0:02:56]}  Nf6 {[%clk 0:02:56]} 5. Nc3 {[%clk 0:02:49]}  Nc6 {[%clk 0:02:56]} 6. Be2 {[%clk 0:02:44]}  Be7 {[%clk 0:02:54]} 7. O-O {[%clk 0:02:32]}  O-O {[%clk 0:02:49]} 8. Ne5 {[%clk 0:02:24]}  Nxe5 {[%clk 0:02:41]} 9. dxe5 {[%clk 0:02:25]}  Ne4 {[%clk 0:02:40]} 10. Nxe4 {[%clk 0:02:23]}  dxe4 {[%clk 0:02:41]} 11. Qc2 {[%clk 0:02:22]}  f5 {[%clk 0:02:35]} 12. exf6 {[%clk 0:02:21]}  Bxf6 {[%clk 0:02:35]} 13. Qxe4 {[%clk 0:02:21]}  Qb6 {[%clk 0:02:36]} 14. Rb1 {[%clk 0:02:08]}  Bd7 {[%clk 0:02:31]} 15. Bf3 {[%clk 0:02:03]}  Rab8 {[%clk 0:02:14]} 16. Rd1 {[%clk 0:01:53]}  Rfd8 {[%clk 0:02:08]} 17. Bd2 {[%clk 0:01:53]}  Kf7 {[%clk 0:02:06]} 18. Qxh7 {[%clk 0:01:47]}  Bc6 {[%clk 0:02:00]} 19. Bh5+ {[%clk 0:01:21]}  Ke7 {[%clk 0:01:56]} 20. Qg6 {[%clk 0:01:19]}  Be8 {[%clk 0:01:47]} 21. Qg4 {[%clk 0:01:09]}  Bxb2 {[%clk 0:01:28]} 22. Bxe8 {[%clk 0:01:06]}  Kxe8 {[%clk 0:01:19]} 23. Qg6+ {[%clk 0:01:06]}  Kf8 {[%clk 0:01:07]} 24. Qc2 {[%clk 0:01:05]} 1-0


[Site "https://www.chess.com"]